Cogmind - Beta 14 @@@ ROGUE MODE // 2024.11.14 @ 08:42:25 Player: Fangrelle Result: Destroyed by L-31 Rogue with Katana Performance ------------- Evolutions (1) 500 Regions Visited (2) 400 Robots Destroyed (56) 280 Value Destroyed (1209) 1209 Prototype IDs (1) 20 Alien Tech Used (0) 0 Bonus (0) 0 TOTAL SCORE: 2409 Bonus ------- None Cogmind --------- Core Integrity 0/400 Matter 182/300 Energy 61/100 System Corruption 0% Temperature Cool (0) Movement Treading (320) Ox2 Location -9/Materials Parts ------- > --- POWER (1) -------- (None) > --- PROPULSION (2) --- Light Treads Light Treads > --- UTILITY (2) ------ Huge Storage Unit Light Armor Plating > --- WEAPON (4) ------- (None) > --- INVENTORY (25) --- Improved Heat Sink Visual Processing Unit Signal Interpreter Shield Generator Shield Generator Hacking Suite Datajack Mining Laser Peak State ------------ > --- POWER ------------ (None) > --- PROPULSION ------- Light Treads Light Treads > --- UTILITY ---------- Huge Storage Unit Targeting Computer > --- WEAPON ----------- Small Laser Small Laser Beam Rifle Improved Medium Laser > --- INVENTORY -------- Light Treads Wheel Wheel Visual Processing Unit Signal Interpreter Light Armor Plating Hardened Light Armor Plating Hacking Suite Mining Laser [Rating: 12] Favorites ----------- Power Ion Engine Engine Ion Engine Propulsion Light Treads Treads Light Treads Leg Aluminum Leg Wheel Wheel Utility Huge Storage Unit Storage Huge Storage Unit Processor Targeting Computer Protection Hardened Light Armor Plating Weapon Assault Rifle Energy Gun Beam Rifle Ballistic Gun Assault Rifle Launcher Rocket Launcher Build | -11 -10 -9 ------- Run | Yrd Mat Mat Slots Evolved 2 | . . 2 Power . | . . . Propulsion . | . . . Utility . | . . . Weapon 2 | . . 2 Parts Attached 28 | . 10 18 Power 3 | . 1 2 Engine 3 | . 1 2 Core . | . . . Reactor . | . . . Propulsion 11 | . 4 7 Treads 7 | . 3 4 Leg 2 | . 1 1 Wheel 2 | . . 2 Hover . | . . . Flight . | . . . Utility 4 | . 2 2 Device . | . . . Storage 1 | . 1 . Processor 1 | . 1 . Hackware . | . . . Protection 2 | . . 2 Artifact . | . . . Weapon 10 | . 3 7 Energy Gun 6 | . 1 5 Energy Cannon . | . . . Ballistic Gun 2 | . 2 . Ballistic Cannon . | . . . Launcher 2 | . . 2 Special Weapon . | . . . Impact Weapon . | . . . Slashing Weapon . | . . . Piercing Weapon . | . . . Special Melee Weapon . | . . . Unidentified Prototypes 1 | . . 1 Parts Lost 16 | . 6 10 Power 3 | . 1 2 Propulsion 5 | . 2 3 Utility 1 | . . 1 Weapon 7 | . 3 4 Highest Loss Streak 7 | . 2 7 To Critical Strikes . | . . . Average Slot Usage (%) 80 | . 83 74 Engine 9 | . 12 4 Treads 14 | . 15 12 Leg 5 | . 5 3 Storage 13 | . 14 11 Processor 6 | . 7 5 Protection 1 | . . 4 Energy Gun 10 | . 4 25 Ballistic Gun 17 | . 23 4 Peak Build Rating 12 | . 7 12 Average Rating 7 | . 5 9 On Entrance 6 | 6 6 6 Naked Turns . | . . . Heaviest Build 96 | 12 89 96 Greatest Support 40 | 20 40 40 Greatest Overweight (x) 9 | . 4 9 Average Overweight (x) 2 | . 1 3 Largest Inventory Capacity 25 | . 25 25 Average Capacity 22 | . 20 25 Most Carried 12 | . 8 12 Average Carried 6 | . 5 8 Final Capacity 25 | 8 25 25 Final Carried 8 | 6 7 8 Class Distribution -------------------- 74% | Mutant 13% | Scavenger-Gunner 10% | Scavenger-Mutant Dominant Class ---------------- Mutant | -10/Materials Scavenger-Gunner | -9/Materials Resources | -11 -10 -9 ----------- Run | Yrd Mat Mat Matter Collected 757 | 200 401 156 Remotely . | . . . Salvage Created 1609 | . 910 699 Parts 111 | . 56 55 Haulers Intercepted 3 | . 2 1 Recyclers Shooed 1 | . 1 . Parts Field Recycled . | . . . Retrieved Matter . | . . . Parts Self-Destructed . | . . . Prevented . | . . . Kills | -11 -10 -9 ------- Run | Yrd Mat Mat Combat Hostiles Destroyed 36 | . 19 17 Guns 28 | . 19 9 AOE 8 | . . 8 Classes Destroyed 10 | . 8 2 Worker 3 | . 1 2 Builder 3 | . 1 2 Tunneler 1 | . 1 . Hauler 3 | . 2 1 Recycler 1 | . . 1 Operator 2 | . 2 . Watcher 7 | . 3 4 Swarmer 12 | . 5 7 Grunt 21 | . 14 7 Sentry 3 | . . 3 Best Kill Streak 15 | . 5 15 Combat Bots Only 9 | . 4 9 Max Kills in Single Turn 4 | . 1 4 Gunslinging . | . . . Exploded 4 | . . 4 Melee . | . . . Uniques/NPCs Destroyed . | . . . Combat | -11 -10 -9 -------- Run | Yrd Mat Mat Hostile Shots Fired 255 | . 114 141 Missed 71 | . 30 41 Damage Taken 2395 | . 968 1427 Core 651 | . 248 403 Absorbed by Shields . | . . . Core Remaining (%) 50 | 100 . . Volleys Fired 143 | . 95 48 Largest 4 | . 2 4 Hottest 192 | . 60 192 Shots Fired 269 | . 170 99 Gun 261 | . 170 91 Cannon . | . . . Launcher 8 | . . 8 Special . | . . . Kinetic 148 | . 144 4 Thermal 87 | . . 87 Explosive 8 | . . 8 Electromagnetic 26 | . 26 . Robot Hit Streak 19 | . 19 8 Robot Miss Streak 5 | . 5 4 Penetration Max . | . . . Secondary Targets 4 | . 4 . Max Gunslinging Chain 1 | . 1 . Shots Hit Robots 172 | . 116 56 Core Hits 89 | . 51 38 Critical Kills . | . . . Critical Parts Destroyed . | . . . Critical Strikes 4 | . 1 3 Burn 3 | . . 3 Corrupt 1 | . 1 . Melee Attacks . | . . . Impact . | . . . Slashing . | . . . Piercing . | . . . Sneak Attacks . | . . . Combat Hostiles . | . . . Follow-up Attacks . | . . . Damage Inflicted 3167 | . 1431 1736 Guns 2203 | . 1411 792 Cannons . | . . . Explosions 964 | . 20 944 Melee . | . . . Ramming . | . . . Kinetic 1233 | . 1216 17 Thermal 795 | . 20 775 Explosive 944 | . . 944 Electromagnetic 195 | . 195 . Impact . | . . . Slashing . | . . . Piercing . | . . . Highest Corruption . | . . . Average Corruption . | . . . Corruption Purged . | . . . Corruption Blocked . | . . . Overload Shots . | . . . Overflow Damage 60 | . . 60 Projectiles . | . . . Explosions 60 | . . 60 Melee . | . . . Knockbacks . | . . . Impact . | . . . Kinetic . | . . . Secondary . | . . . Self-Inflicted Damage 189 | . . 189 Shots 4 | . . 4 Rammed . | . . . Targets Rammed . | . . . Kicked . | . . . Crushed . | . . . Highest Temperature 434 | . 20 434 Average Temperature 115 | . 7 143 Received Heat Transfer 855 | . 501 354 Effects 3 | . . 3 Shutdowns 1 | . . 1 Interference 2 | . . 2 Siege Activations . | . . . Robots Corrupted . | . . . Combat Hostiles . | . . . Parts Fried 1 | . 1 . Impact Corruptions . | . . . Robots Melted . | . . . Combat Hostiles . | . . . Parts Melted 4 | . . 4 Heat Transferred 2149 | . . 2149 Parts Sabotaged . | . . . Parts Stolen . | . . . Parts Stripped . | . . . Power Chain Reactions 1 | . 1 . Alert | -11 -10 -9 ------- Run | Yrd Mat Mat Peak Influence 321 | . 200 321 Initial 11 | . . 11 Average 75 | . 69 91 Maximum Alert Level 1 | . 1 1 Low Security (%) 95 | . 97 90 Level 1 4 | . 2 9 Level 2 . | . . . Level 3 . | . . . Level 4 . | . . . Level 5 . | . . . High Security . | . . . Max Security . | . . . Squads Dispatched 6 | . 3 3 Investigation 3 | . 2 1 Extermination . | . . . Reinforcement 3 | . 1 2 Assault . | . . . Garrison . | . . . Intercept . | . . . Searches Triggered . | . . . Construction Impeded . | . . . Haulers Reinforced . | . . . Active Scanning Responses . | . . . Cargo Convoy Interrupts . | . . . Stealth | -11 -10 -9 --------- Run | Yrd Mat Mat Distress Signals 3 | . 1 2 Communications Jammed . | . . . Distress Signals . | . . . Times Spotted 67 | . 40 27 Peak Tracking Total 10 | . 4 10 Tactical Retreats 1 | . 1 . Traps | -11 -10 -9 ------- Run | Yrd Mat Mat Traps Triggered 3 | . 2 1 Indirectly . | . . . Trap Hack Attempts . | . . . Triggered . | . . . Disarmed . | . . . Reprogrammed . | . . . Reused . | . . . Traps Extracted . | . . . Installed . | . . . Triggered . | . . . Machines | -11 -10 -9 ---------- Run | Yrd Mat Mat Machines Disabled 2 | . . 2 Max in Single Turn 1 | . . 1 Machines Repaired . | . . . Machines Dismantled . | . . . Machines Sabotaged . | . . . Overloaded Fab Kills . | . . . Hacking | -11 -10 -9 --------- Run | Yrd Mat Mat Machines Accessed 6 | . 6 . Terminals 5 | . 5 . Fabricators . | . . . Repair Stations . | . . . Recycling Units 1 | . 1 . Scanalyzers . | . . . Garrison Access . | . . . Total Hacks 19 | . 19 . Successful 12 | . 12 . Failed 7 | . 7 . Catastrophic . | . . . Database Lockouts . | . . . Manual 16 | . 16 . Terminals 15 | . 15 . Fabricators . | . . . Repair Stations . | . . . Recycling Units 4 | . 4 . Scanalyzers . | . . . Garrison Access . | . . . Terminal Hacks . | . . . Fabricator Hacks . | . . . Repair Station Hacks . | . . . Recycling Unit Hacks 2 | . 2 . Report Inventory 1 | . 1 . Retrieve Components 1 | . 1 . Scanalyzer . | . . . Garrison Access Hacks . | . . . Unauthorized Hacks 10 | . 10 . Terminals 9 | . 9 . Assimilate 3 | . 3 . Botnet 4 | . 4 . Operators 1 | . 1 . Skim 1 | . 1 . Fabricators . | . . . Repair Stations . | . . . Recycling Units 1 | . 1 . Tunnel 1 | . 1 . Scanalyzers . | . . . Garrison Access . | . . . Data Cores Recovered . | . . . Used . | . . . Hacking Detections 6 | . 6 . Full Trace Events 1 | . 1 . Feedback Events . | . . . Feedback Blocked . | . . . Robot Schematics Acquired . | . . . Robots Built . | . . . Authchips . | . . . Time . | . . . Total Robot Build Rating . | . . . Part Schematics Acquired . | . . . Parts Built . | . . . Authchips . | . . . Time . | . . . Total Part Build Rating . | . . . Parts Repaired . | . . . Time . | . . . Parts Recycled . | . . . Recycled Matter . | . . . Retrieved Matter . | . . . Retrieved Components 9 | . 9 . Parts Scanalyzed . | . . . Part Schematics Acquired . | . . . Parts Damaged . | . . . Bothacking | -11 -10 -9 ------------ Run | Yrd Mat Mat Used RIF Installer . | . . . Robots Hacked . | . . . Non-combat . | . . . Combat . | . . . Robot Hacks Applied . | . . . Relay Couplers Released . | . . . Fabnet Peak Effective % . | . . . Robots Rewired . | . . . Allies Hacked . | . . . Hacks Repelled . | . . . Allies | -11 -10 -9 -------- Run | Yrd Mat Mat Total Allies . | . . . Largest Group . | . . . Highest-Rated Group . | . . . Highest-Rated Ally . | . . . Total Orders . | . . . Ally Attacks . | . . . Total Damage . | . . . Kills . | . . . Allies Corrupted . | . . . Allies Melted . | . . . Intel | -11 -10 -9 ------- Run | Yrd Mat Mat Robot Analysis Total . | . . . Derelict Logs Recovered . | . . . Drone Launches . | . . . Drone Recoveries . | . . . Exploration | -11 -10 -9 ------------- Run | Yrd Mat Mat Turns Passed 3224 | . 2271 953 Spaces Moved 893 | 1 706 186 Core . | . . . Treads 565 | . 404 161 Legs 309 | 1 302 6 Wheels 19 | . . 19 Hover . | . . . Flight . | . . . Fastest Speed 120 | 120 120 140 Average Speed 304 | 120 277 406 Slowest Speed 540 | 120 480 540 Overloaded Moves . | . . . Propulsion Burnouts . | . . . Robots Hopped . | . . . Cave-ins Triggered . | . . . Exploration Rate (%) 41 | 2 96 27 Regions Visited 2 Branch Regions . Pre-discovered Areas 1 | . 1 . Known Exits Taken . | . . . Unknown Exits Taken 2 | 1 1 . Scrap Searched . | . . . Spaces Dug . | . . . Terrain Destroyed 34 | . 6 28 Melee . | . . . Projectile . | . . . AOE 34 | . 6 28 Terrain Rammed . | . . . Walls Destroyed . | . . . Machines Disabled . | . . . Actions | -11 -10 -9 --------- Run | Yrd Mat Mat Total 1148 | . 854 294 Wait 60 | . 33 27 Move 891 | . 705 186 Hop . | . . . Pick Up 14 | . 6 8 Fast Attach 14 | . 6 8 Attach 11 | . 4 7 Detach 1 | . . 1 Swap 3 | . . 3 Drop 11 | . 5 6 Fire 143 | . 95 48 Melee . | . . . Ram . | . . . Kick . | . . . Crush . | . . . Escape Stasis . | . . . Rewire . | . . . Trap . | . . . Miscellaneous . | . . . Route ------- -11/Scrapyard -10/Materials (discovered 4 exits: [*Mat x3] / [*Min]) -9/Materials (discovered 1 exit: [*Min]) History --------- Turn | Location | Event 1 | -11/Scrapyard | Discovered new exit (range 0) 1 | -11/Scrapyard | Entered Materials 188 | -10/Materials | Discovered new exit (range 15) 300 | -10/Materials | Build established: Mutant 451 | -10/Materials | Discovered new exit (range 12) 1060 | -10/Materials | Core integrity fell below 50% 1525 | -10/Materials | Discovered new exit (range 10) 1779 | -10/Materials | Discovered new exit (range 5) 1983 | -10/Materials | Core integrity fell below 20% 2272 | -10/Materials | Entered another Materials area 2272 | -9/Materials | Evolved 2 slots: Weapon x2 2686 | -9/Materials | Build established: Scavenger-Gunner 3004 | -9/Materials | Discovered new exit (range 9) 3076 | -9/Materials | Build established: Scavenger-Mutant 3140 | -9/Materials | Core integrity fell below 50% 3160 | -9/Materials | Destroyed 9 combat bots 3220 | -9/Materials | Core integrity fell below 20% 3225 | -9/Materials | Destroyed by L-31 Rogue with Katana Last Messages --------------- 03212_ Wheel destroyed. 03212_ U-05 Engineer lays Concrete. 03213_ K-01 Serf destroyed. 03214_ U-05 Engineer lays Concrete. 03214_ O-16 Technician uses terminal to summon reinforcements. 03214_ ALERT: Hostiles spotted, dispatching reinforcements to Terminal M012. 03214_ O-16 Technician locks terminal. 03214_ Lgt. Ion Engine destroyed. 03215_ U-05 Engineer builds a Door. 03215_ U-05 Engineer builds a Wall. 03216_ Destroyed Imp. Aluminum Leg. 03216_ Wheel destroyed. 03216_ Destroyed Wheel. 03218_ The unstable cave ceiling collapses. 03219_ Rocket Launcher destroyed. 03219_ U-05 Engineer builds a Wall. 03219_ K-01 Serf collects debris. 03220_ U-05 Engineer builds a Wall. 03222_ K-01 Serf collects debris. 03224_ U-05 Engineer builds a Wall. Map ----- +----------------------------------------------------+ | ?????????????????????????????????????????? | | ?????????????????????????????????????????? | | ?????????????????????????????????????????? | | ?????????????????????????????????????????? | | ?????????????????????????????????????????? | | ?????????????????????????????????????????? | | ?????????????????????????????????????????? | | ?????????????????????????????????????????? | | ?????????????????????????????????????????? | | ?????????????????????????????????????????? | | ?????????????????????????????????????????? | | ?????????????????????????????????????????? | | ?????????????????????????????????????????? | | ?????????????????????????????????????????? | | ?????????????????????????????????????????? | | ??????????????? ???????????????????????? | | ??????????????# ?####??????????????????? | | ??????????????# ?#"""??????????????????? | | ??????????????# ##"T"###???????????????? | | ??????????????# o #???????????????? | | ??????????????+ #???????????????? | | ??????????????# """ ###+####????????? | | ??????????????#k R" #????????? | | ??????????????# """ #????????? | | ??????????????# """ #????????? | | ??????????????# l@ """ #????????? | | ??????????????# """ #????????? | | ??????????????# #????????? | | ???????????#### #####????????? | | ???????????# = ???????????? | | ############### % % ! "T" ??????????? | | k !u %# ?????????? | | | ! + #????????? | | w ! kg=# #????????? | | ############ ##! % * # #????????? | | ???????????####u ! #####+##????????? | | ###??????????#k#+##### #???????????????? | | #?????????? # ?????????????? | | #????????? # ???????????? | | ^ #????????" """ """ # ???????????? | | ?????"" """ """ # ???????????? | | ?+####???""" """ """ # ???????????? | | ????????? # ????????????? | | ??????????###??####?## ? ????????????? | | ?????????????????????????????????????????? | | ?????????????????????????????????????????? | | ?????????????????????????????????????????? | | ?????????????????????????????????????????? | | ?????????????????????????????????????????? | | ?????????????????????????????????????????? | +----------------------------------------------------+ Best States ------------- Heat Dissipation 28 Energy Generation 10 Energy Capacity 250 Matter Stores 300 Matter Capacity 300 Sight Range 16 Terrain Scan Density 10 Armor Coverage 150 Evasion (%) 55 Targeting Accuracy 5 Recoil Reduction 2 Item Schematics ----------------- None Robot Schematics ------------------ None Fabricated ------------ Nothing Alien Tech Used ----------------- None Achievements -------------- None Challenges ------------ None Game ------ Seed AmuletArmageddonSplitter Manual? 0 Play Time 00:15:44 Cumulative 71.2 hours Start 2024.11.14 @ 08:18:30 End 2024.11.14 @ 08:42:25 Sessions 3 Manual Loads 0 Difficulty Rogue Special Mode None Game No. 121 Rogue 121 Adventurer 0 Explorer 0 Win Type - Total 0 Types 0/0/0/0/0/0/0/0/0 Lore% 40 Gallery% 35 Achievement% 34 Wizard Run 0 Options --------- Layout 0 ASCII 0 Keyboard 0 Movement Mouse Keybinds 0 Fullscreen 1 Font 24/Smallcaps Map View 91x25 Zoom Use 92% Tactical HUD 1 Map Filters NONE Filters NONE Steam 1 RUN: ed2058e4-d2e7-4ecb-9133-c2f8f3d6e15a